Cogmind - Beta 14 @@@ ROGUE MODE // 2024.09.27 @ 18:37:39 Player: BionicBot Result: Escaped! Performance ------------- Evolutions (9) 4500 Regions Visited (20) 4000 Robots Destroyed (252) 1260 Value Destroyed (11341) 11341 Prototype IDs (20) 400 Alien Tech Used (2) 400 Bonus (9644) 9644 TOTAL SCORE: 31545 Bonus ------- High Alert Combat Kills 1253 Follower Combat Kills 2211 Network Hubs Disabled 600 Built Enhanced Grunts 300 Met R17 at Cetus 500 Met R17 at Research 2000 Win 3000 Friendly Fire -220 Cogmind --------- Core Integrity 509/1600 Matter 261/300 Energy 392/408 System Corruption 35% Temperature Cool (4) Movement Walking (104) Location To Epsilon Eridani Parts ------- > --- POWER (3) -------- Multi-Quantum Reactor > --- PROPULSION (6) --- Centrium-Cooled Exoskeleton > --- UTILITY (12) ----- Scrap Engine High-capacity Storage Unit Spectral Analyzer Advanced Terrain Scan Processor Advanced Targeting Computer > --- WEAPON (4) ------- (None) > --- INVENTORY (20) --- Energy Well (350) Seismic Detector Advanced Weapon Cycler Advanced Transmission Jammer Experimental Propulsion Shielding Improved Focal Shield Advanced Force Field Long-range Tractor Beam Drone Bay (2/2) Subatomic Replicator Advanced Datajack Peak State ------------ > --- POWER ------------ Multi-Quantum Reactor > --- PROPULSION ------- Centrium-Cooled Exoskeleton > --- UTILITY ---------- Armored Scrap Engine Advanced Heat Sink High-capacity Storage Unit Spectral Analyzer Advanced Signal Interpreter Long-range Terrain Scanner Advanced Targeting Computer Advanced Target Analyzer Advanced Transmission Jammer Centrium Light Armor Plating Improved Hacking Suite > --- WEAPON ----------- Hyp. Ballistic Construct/C Hyp. Kinetic Rail Construct/G Directed Neutralizer Construct/C > --- INVENTORY -------- Advanced Heat Sink Energy Well High-capacity Matter Pod Advanced Terrain Scan Processor Seismic Detector Advanced Weapon Cycler Experimental Propulsion Shielding Layered Heavy Armor Plating Advanced Force Field Long-range Tractor Beam Drone Bay Subatomic Replicator Terrabomb Heavy Missile Launcher Heavy Missile Launcher Advanced Datajack Thunder Hammer [Rating: 184] Favorites ----------- Power Constructs Engine Deuterium Engine Power Core Enhanced Nuclear Core Reactor Constructs Propulsion Light Treads Treads Light Treads Leg Constructs Utility High-capacity Storage Unit Device Armored Scrap Engine Storage High-capacity Storage Unit Processor Improved Signal Interpreter Hackware Hacking Suite Protection Centrium Medium Armor Plating Weapon Constructs Energy Cannon Constructs Ballistic Gun Constructs Ballistic Cannon Hypervelocity Mass Driver Launcher Heavy Missile Launcher Impact Weapon Impact Mace Build | -11 -10 -9 -8 -7 -7 -7 -5 -5 -5 -5 -5 -4 -4 -4 -3 -3 -2 -2 -1 -1 ------- Run | Yrd Mat Mat Mat Fac Sto Rec Fac Ext Cet Arc Hub Fac Upp Upp Res Tes Res Qua Acc Com Slots Evolved 18 | . . 2 2 2 . . 4 . . . . 2 . . 2 . 2 . 2 . Power 2 | . . . . . . . . . . . . 1 . . . . 1 . . . Propulsion 4 | . . 1 1 . . . 1 . . . . 1 . . . . . . . . Utility 10 | . . . 1 2 . . 2 . . . . . . . 2 . 1 . 2 . Weapon 2 | . . 1 . . . . 1 . . . . . . . . . . . . . Parts Attached 202 | 7 8 12 14 13 24 7 8 11 1 1 17 15 10 2 8 9 18 . 6 11 Power 8 | 1 . 3 1 1 2 . . . . . . . . . . . . . . . Engine 6 | 1 . 3 1 1 . . . . . . . . . . . . . . . . Core 2 | . . . . . 2 . . . . . . . . . . . . . . . Reactor . | . . . . . . . . . . . . . . . . . . . . . Propulsion 16 | 2 2 4 5 . 3 . . . . . . . . . . . . . . . Treads 16 | 2 2 4 5 . 3 . . . . . . . . . . . . . . . Leg . | . . . . . . . . . . . . . . . . . . . . . Wheel . | . . . . . . . . . . . . . . . . . . . . . Hover . | . . . . . . . . . . . . . . . . . . . . . Flight . | . . . . . . . . . . . . . . . . . . . . . Utility 140 | 2 5 3 2 8 9 6 8 10 1 1 17 15 7 2 8 7 18 . 6 5 Device 70 | 1 4 3 1 3 5 3 6 4 . . 10 8 3 2 2 1 8 . 4 2 Storage 3 | 1 1 . . . . . . . . . . . . . 1 . . . . . Processor 13 | . . . . 1 . . . 1 . . . . 2 . 3 3 1 . 1 1 Hackware 9 | . . . . 1 . . 1 1 . 1 . 1 . . 2 . 2 . . . Protection 45 | . . . 1 3 4 3 1 4 1 . 7 6 2 . . 3 7 . 1 2 Artifact . | . . . . . . . . . . . . . . . . . . . . . Weapon 38 | 2 1 2 6 4 10 1 . 1 . . . . 3 . . 2 . . . 6 Energy Gun . | . . . . . . . . . . . . . . . . . . . . . Energy Cannon 1 | . . . . . . . . . . . . . . . . . . . . 1 Ballistic Gun 22 | 2 1 2 6 2 7 1 . . . . . . . . . . . . . 1 Ballistic Cannon 1 | . . . . . . . . . . . . . . . . . . . . 1 Launcher 5 | . . . . 1 . . . . . . . . 2 . . . . . . 2 Special Weapon . | . . . . . . . . . . . . . . . . . . . . . Impact Weapon 9 | . . . . 1 3 . . 1 . . . . 1 . . 2 . . . 1 Slashing Weapon . | . . . . . . . . . . . . . . . . . . . . . Piercing Weapon . | . . . . . . . . . . . . . . . . . . . . . Special Melee Weapon . | . . . . . . . . . . . . . . . . . . . . . Unidentified Prototypes 12 | . . . . . 4 1 . . 1 . . . . . . 4 . 2 . . Parts Lost 75 | . . . 7 . 4 1 . 9 . . 3 10 7 . 4 4 3 . 1 22 Power 8 | . . . 1 . . . . . . . . 1 1 . . 2 . . . 3 Propulsion 11 | . . . 3 . 1 . . 2 . . . 2 1 . . . . . . 2 Utility 30 | . . . 1 . 1 1 . 4 . . 2 3 3 . 3 . 3 . . 9 Weapon 26 | . . . 2 . 2 . . 3 . . 1 4 2 . 1 2 . . 1 8 Highest Loss Streak 9 | . . . 3 . 2 1 . 4 . . 1 7 9 . 3 3 1 . 1 9 To Critical Strikes 5 | . . . 1 . . . . 1 . . . 1 . . . 1 . . . 1 Average Slot Usage (%) 69 | . 99 99 93 100 99 82 66 63 66 70 69 62 47 48 62 55 59 57 60 43 Engine 2 | . 14 11 9 7 . 1 4 2 . . . . . . . . . . . . Core 1 | . . . . . 6 5 . 2 5 5 5 5 . . . . . . . . Reactor 1 | . . . . . . . . . . . . . 1 5 3 3 4 4 4 4 Treads 9 | . 28 32 32 30 29 20 4 2 1 . 1 4 . . . . . . . . Leg 1 | . . . . . . . . 1 2 . . . 4 5 2 2 4 4 4 4 Device 8 | . 13 11 7 6 8 5 8 10 11 11 12 11 6 6 9 5 7 10 14 8 Storage 5 | . 14 11 9 7 7 7 5 5 5 5 5 5 5 5 4 4 4 4 4 4 Processor 8 | . . . . 7 7 7 5 4 5 5 5 5 7 15 18 17 18 17 16 15 Hackware 2 | . . . . 7 7 3 5 5 5 5 3 4 2 . 2 . 4 4 4 1 Protection 3 | . . . 8 7 5 8 4 4 5 5 5 3 4 . . 3 3 . . . Energy Gun 3 | . . . . . . 4 14 8 13 17 9 . . . 2 2 4 4 3 . Energy Cannon 1 | . . . . . . . . . . . 6 . . . 7 3 4 4 4 2 Ballistic Gun 9 | . 28 32 26 21 21 13 6 6 5 5 3 9 4 1 2 2 3 4 4 1 Ballistic Cannon 2 | . . . . . . . . 1 . . 1 9 8 8 2 . . . . . Peak Build Rating 184 | 7 9 15 27 38 44 59 86 80 96 98 106 105 91 73 134 149 167 159 184 180 Average Rating 77 | 5 7 13 23 36 41 45 75 74 87 97 101 97 77 69 106 115 151 157 169 129 On Entrance 76 | . 7 9 14 26 38 43 59 78 71 96 98 101 74 73 72 116 144 159 157 176 Naked Turns . | . . . . . . . . . . . . . . . . . . . . . Heaviest Build 126 | 14 50 57 64 67 68 65 66 80 77 77 88 93 74 72 111 126 106 104 112 118 Greatest Support 190 | 40 40 60 80 80 80 95 118 156 94 54 103 105 107 69 158 190 137 137 137 166 Greatest Overweight (x) 2 | . 1 . 1 . 1 2 . 1 1 1 1 . 1 1 1 . . . . . Average Overweight (x) . | . . . . . . . . . . 1 . . . 1 . . . . . . Largest Inventory Capacity 20 | 8 20 20 20 20 20 20 20 20 20 20 20 20 20 20 20 20 20 20 20 20 Average Capacity 19 | 7 13 20 20 20 20 20 20 20 20 20 20 20 20 20 20 20 20 20 20 20 Most Carried 20 | 3 9 14 20 20 20 20 13 17 20 20 20 20 15 11 18 18 20 20 20 20 Average Carried 14 | 2 7 10 16 19 19 16 12 13 16 19 19 18 13 10 13 15 17 18 18 14 Final Capacity 20 | 8 20 20 20 20 20 20 20 20 20 20 20 20 20 20 20 20 20 20 20 20 Final Carried 20 | 3 8 14 20 20 20 14 12 15 20 19 19 16 10 10 18 17 17 20 18 11 Scrap Engine Consumption 442 | . . . . . . 38 32 75 7 7 40 23 12 2 116 33 25 . 9 23 Constructs Created 27 | . . . . . . 5 1 1 2 . 1 2 3 . 5 2 1 . 1 3 Constructs Modified 138 | . . . . . . 7 11 32 5 . 11 4 6 2 34 11 7 3 . 5 Class Distribution -------------------- 40% | Construct 15% | Mutant 13% | Commander-Construct 8% | Scavenger-Tank 6% | Scavenger-Skirmisher 5% | Scavenger-Construct 3% | Scavenger-Gunner 3% | Scavenger-Mutant Dominant Class ---------------- Mutant | -10/Materials Scavenger-Gunner | -9/Materials Scavenger-Tank | -8/Materials Scavenger-Skirmisher | -7/Factory Scavenger-Skirmisher | -7/Storage Scavenger-Tank | -7/Recycling Commander-Construct | -5/Factory Commander-Construct | -5/Extension Commander-Construct | -5/Cetus Commander-Construct | -5/Archives Scavenger-Construct | -5/Hub_04(d) Construct | -4/Factory Construct | -4/Upper Caves Construct | -4/Upper Caves Construct | -3/Research Mutant | -3/Testing Construct | -2/Research Construct | -2/Quarantine Construct | -1/Access Mutant | -1/Command Resources | -11 -10 -9 -8 -7 -7 -7 -5 -5 -5 -5 -5 -4 -4 -4 -3 -3 -2 -2 -1 -1 ----------- Run | Yrd Mat Mat Mat Fac Sto Rec Fac Ext Cet Arc Hub Fac Upp Upp Res Tes Res Qua Acc Com Matter Collected 6834 | 310 400 627 970 142 840 388 248 310 115 79 241 248 783 50 166 136 219 . . 562 Remotely 818 | . . . 808 . . . . . . . . . . 10 . . . . . . Salvage Created 12098 | 137 469 710 1088 169 899 438 595 1470 243 188 1209 474 1116 . . 958 1018 15 40 862 Parts 613 | 10 23 47 68 19 43 19 29 54 4 11 64 12 36 . . 51 67 3 3 50 Haulers Intercepted 4 | . . 3 1 . . . . . . . . . . . . . . . . . Recyclers Shooed 17 | . 1 2 4 . . . 2 . . . . . . . . 1 3 . . 4 Parts Field Recycled . | . . . . . . . . . . . . . . . . . . . . . Retrieved Matter . | . . . . . . . . . . . . . . . . . . . . . Parts Self-Destructed 34 | . . . . . . . . . . . . . 29 5 . . . . . . Prevented . | . . . . . . . . . . . . . . . . . . . . . Kills | -11 -10 -9 -8 -7 -7 -7 -5 -5 -5 -5 -5 -4 -4 -4 -3 -3 -2 -2 -1 -1 ------- Run | Yrd Mat Mat Mat Fac Sto Rec Fac Ext Cet Arc Hub Fac Upp Upp Res Tes Res Qua Acc Com Combat Hostiles Destroyed 188 | . 8 9 19 5 20 5 10 21 4 1 17 8 17 . . 13 10 . . 21 Melee 3 | . . . . . . . . . . . . . . . . . . . . 3 Guns 123 | . 8 9 19 2 20 5 10 15 4 1 10 3 8 . . 5 2 . . 2 Cannons 51 | . . . . . . . . 6 . . 6 5 4 . . 7 8 . . 15 AOE 9 | . . . . 3 . . . . . . . . 5 . . . . . . 1 Classes Destroyed 20 | 2 2 4 5 1 1 2 . 2 . . . . 1 . . . . . . . Worker 16 | . . . 1 . 1 . 1 1 . . 4 1 . . . 1 2 . . 4 Builder 8 | . . . 1 1 1 . 1 . . . 1 . . . . 1 2 . . . Tunneler 3 | 2 . . . . . . . . . . . . . . . . 1 . . . Hauler 4 | . . 3 1 . . . . . . . . . . . . . . . . . Recycler 8 | 1 1 2 2 . . 1 . . . . 1 . . . . . . . . . Minesweeper 1 | . . . . . . . . . . . . . 1 . . . . . . . Mechanic 1 | . . . 1 . . . . . . . . . . . . . . . . . Operator 10 | . . 1 2 . . . . 1 . 3 1 . . . . . . 1 . 1 Watcher 13 | . 2 3 1 . 2 . . . . . . . . . . 1 1 . 1 2 Swarmer 35 | . . 3 4 3 . . 1 . . . 4 2 . . . 1 . . . 17 Saboteur 1 | . . . . . . . . 1 . . . . . . . . . . . . Grunt 73 | . 8 4 10 . 12 . 4 9 1 . 6 1 11 . . 4 3 . . . Brawler 5 | . . . . . 1 . 1 1 . . . . 2 . . . . . . . Duelist 5 | . . . 1 . . . 1 2 . . . 1 . . . . . . . . Sentry 32 | . . 2 2 1 4 2 1 7 . 1 3 2 1 . . . 5 . . 1 Hunter 13 | . . . 2 . . . . . . . 2 2 2 . . 5 . . . . Programmer 17 | . . . . 1 3 . 2 . . . 2 . 1 . . 3 2 . . 3 Behemoth 1 | . . . . . . . . 1 . . . . . . . . . . . . Cetus Guard 3 | . . . . . . . . . 3 . . . . . . . . . . . Scientist 2 | . . . . . . 2 . . . . . . . . . . . . . . Scrapper 3 | . . . . . . 3 . . . . . . . . . . . . . . Decomposer 1 | . . . . . . . . . . . . . 1 . . . . . . . Best Kill Streak 16 | 2 4 6 5 3 16 5 3 3 1 3 6 3 9 . . 4 4 1 1 10 Combat Bots Only 15 | . 4 5 4 3 15 3 2 2 1 1 5 3 9 . . 4 2 . . 7 Max Kills in Single Turn 4 | 1 1 1 1 3 2 1 2 1 1 1 2 1 4 . . 1 2 1 1 1 Gunslinging 1 | . . . . . . . 1 . . . . . . . . . . . . . Exploded 4 | . . . . 3 . . . . . . . . 4 . . . . . . 1 Melee 1 | . . . . . . . . . . . . . . . . . . . . 1 Uniques/NPCs Destroyed . | . . . . . . . . . . . . . . . . . . . . . Combat | -11 -10 -9 -8 -7 -7 -7 -5 -5 -5 -5 -5 -4 -4 -4 -3 -3 -2 -2 -1 -1 -------- Run | Yrd Mat Mat Mat Fac Sto Rec Fac Ext Cet Arc Hub Fac Upp Upp Res Tes Res Qua Acc Com Hostile Shots Fired 2071 | . 54 27 104 47 161 38 45 183 32 4 113 173 169 . 106 112 50 12 12 629 Missed 667 | . 13 6 27 19 55 9 9 45 12 3 35 41 49 . 35 61 17 6 8 217 Damage Taken 28638 | . 515 270 1070 330 1088 442 532 2842 451 71 2123 2894 2356 . 2338 961 756 136 72 9391 Core 3515 | . 81 23 60 37 172 93 162 170 58 . 441 446 258 . 349 55 19 . . 1091 Absorbed by Shields 792 | . . . . . . . 303 372 117 . . . . . . . . . . . Ignored by Resistances 11 | . . . . . . . . 6 5 . . . . . . . . . . . Regen/Repaired (Parts) 6086 | . . . . . . 105 220 1138 373 . 543 283 475 198 698 827 441 161 . 624 Core Remaining (%) 65 | 100 67 94 89 . . 56 . . . . 16 . . 38 . 68 . 98 . 31 Volleys Fired 682 | 10 40 40 86 8 42 19 25 78 22 15 42 37 48 . 11 36 38 5 10 70 Largest 4 | 2 2 3 3 3 3 3 4 4 4 4 4 4 4 . 4 3 3 3 3 3 Hottest 363 | 40 40 63 76 79 84 76 236 219 263 263 363 317 180 . 362 177 181 181 181 191 Shots Fired 1743 | 20 80 120 251 20 121 55 96 235 62 51 133 94 110 . 29 57 98 7 12 92 Gun 1369 | 20 80 120 251 19 121 55 96 194 62 51 91 38 39 . 8 36 60 2 2 24 Cannon 364 | . . . . . . . . 41 . . 42 56 67 . 21 21 38 5 10 63 Launcher 10 | . . . . 1 . . . . . . . . 4 . . . . . . 5 Special . | . . . . . . . . . . . . . . . . . . . . . Kinetic 1192 | 20 80 120 251 19 121 55 34 89 22 15 33 69 106 . 16 3 57 2 2 78 Thermal 501 | . . . . . . . 62 146 40 36 60 25 . . 13 54 41 5 10 9 Explosive 10 | . . . . 1 . . . . . . . . 4 . . . . . . 5 Electromagnetic 40 | . . . . . . . . . . . 40 . . . . . . . . . Robot Hit Streak 19 | 5 16 12 11 7 15 11 11 18 19 12 8 9 14 . 12 11 7 2 1 8 Robot Miss Streak 7 | 2 4 3 6 3 7 4 5 4 4 4 6 4 3 . 2 3 4 . 2 6 Penetration Max 2 | . . . . . 1 . . 1 . . . 1 . . . . 2 . . 1 Secondary Targets 11 | . 1 . . . 3 . 4 2 1 . . . . . . . . . . . Max Gunslinging Chain 1 | . 1 . . . 1 . 1 1 1 . . . . . . . . . . . Shots Hit Robots 1160 | 12 58 79 150 15 99 45 66 161 42 35 66 53 83 . 22 42 55 1 1 75 Core Hits 632 | 5 21 30 61 12 107 37 37 68 14 19 39 26 61 . 5 25 26 1 1 37 Critical Kills 25 | . . . . . . . . 3 . . 1 . 9 . . . 1 . . 11 Critical Parts Destroyed 37 | . . . 1 . 2 . . 8 . . . 2 11 . . 1 3 . . 9 Critical Strikes 85 | . . . 1 . 2 . . 13 2 2 2 9 23 . 2 2 5 . . 22 Burn 5 | . . . . . . . . . . 2 1 . . . . 1 1 . . . Meltdown 1 | . . . . . . . . . . . 1 . . . . . . . . . Destroy 59 | . . . 1 . 1 . . 13 . . . 2 20 . . . 4 . . 18 Blast 14 | . . . . . . . . . 2 . . 7 3 . 2 . . . . . Smash 6 | . . . . . 1 . . . . . . . . . . 1 . . . 4 Melee Attacks 58 | . . . . 6 7 . . 7 . . . . . . . 8 . . . 30 Impact 58 | . . . . 6 7 . . 7 . . . . . . . 8 . . . 30 Slashing . | . . . . . . . . . . . . . . . . . . . . . Piercing . | . . . . . . . . . . . . . . . . . . . . . Sneak Attacks 1 | . . . . . 1 . . . . . . . . . . . . . . . Combat Hostiles . | . . . . . . . . . . . . . . . . . . . . . Follow-up Attacks . | . . . . . . . . . . . . . . . . . . . . . Damage Inflicted 30123 | 123 729 1111 2342 362 2120 763 1521 3893 998 893 2292 1378 1786 . 519 2476 3442 27 70 3278 Guns 18509 | 123 729 1094 2342 271 1943 752 1496 3010 998 893 1462 512 459 . 79 981 1167 27 . 171 Cannons 8474 | . . . . . . . . 877 . . 741 827 869 . 440 1347 2209 . 70 1094 Explosions 1040 | . . . . 84 . . . . . . . . 458 . . . . . . 498 Melee 1573 | . . . . . 176 . . . . . . . . . . 132 . . . 1265 Ramming 527 | . . 17 . 7 1 11 25 6 . . 89 39 . . . 16 66 . . 250 Kinetic 15325 | 123 729 1094 2342 271 1943 752 392 1590 358 234 629 989 1328 . 376 25 1101 27 . 1022 Thermal 10963 | . . . . . . . 1104 2297 640 659 879 350 . . 143 2303 2275 . 70 243 Explosive 1040 | . . . . 84 . . . . . . . . 458 . . . . . . 498 Electromagnetic 695 | . . . . . . . . . . . 695 . . . . . . . . . Impact 1573 | . . . . . 176 . . . . . . . . . . 132 . . . 1265 Slashing . | . . . . . . . . . . . . . . . . . . . . . Piercing . | . . . . . . . . . . . . . . . . . . . . . Highest Corruption 35 | . . . 1 1 4 4 3 3 3 3 8 . 2 2 . 5 . . . 35 Average Corruption 3 | . . . 1 1 1 4 2 3 3 3 3 . 1 2 . 3 . . . 22 Corruption Purged . | . . . . . . . . . . . . . . . . . . . . . Corruption Blocked . | . . . . . . . . . . . . . . . . . . . . . Effects 195 | . . . 10 1 9 43 4 25 8 9 16 . 13 7 . 11 . . . 39 Message Errors 43 | . . . 3 . 3 11 1 7 1 2 2 . 2 3 . 1 . . . 7 Matter Fused 49 | . . . 2 . 3 12 . 8 2 1 3 . 5 1 . 5 . . . 7 Heat Flow Errors 27 | . . . 1 . 1 5 1 5 1 2 2 . 1 2 . 2 . . . 4 Energy Discharges 19 | . . . 2 . 1 2 1 2 1 . 1 . 2 . . 1 . . . 6 Parts Rejected 5 | . . . . . . 1 . 1 . . . . 1 . . . . . . 2 Data Loss (minor) 17 | . . . . 1 1 4 . . . 2 4 . 1 1 . . . . . 3 Data Loss (major) 9 | . . . 1 . . 2 1 1 1 1 1 . . . . . . . . 1 Alerts 11 | . . . . . . 4 . 1 1 1 1 . 1 . . 2 . . . . Misdirections 3 | . . . . . . . . . . . . . . . . . . . . 3 Weapon Failures 12 | . . . 1 . . 2 . . 1 . 2 . . . . . . . . 6 Overload Shots . | . . . . . . . . . . . . . . . . . . . . . Overflow Damage 1494 | . . . . . 65 . . 30 . . 30 24 21 . 5 196 553 . . 570 Projectiles 846 | . . . . . . . . 30 . . 30 . 21 . 5 134 553 . . 73 Explosions . | . . . . . . . . . . . . . . . . . . . . . Melee 648 | . . . . . 65 . . . . . . 24 . . . 62 . . . 497 Knockbacks 48 | . . . . . . . . 6 . . 1 10 14 . 2 2 . . . 13 Impact 3 | . . . . . . . . . . . . . . . . 1 . . . 2 Kinetic 43 | . . . . . . . . 5 . . 1 9 14 . 2 1 . . . 11 Secondary 2 | . . . . . . . . 1 . . . 1 . . . . . . . . Self-Inflicted Damage 34 | . . . . . . . . . . . . . 16 . . . . . . 18 Shots 2 | . . . . . . . . . . . . . 1 . . . . . . 1 Rammed 4 | . . 1 . 1 . 1 . 1 . . . . . . . . . . . . Targets Rammed 35 | . . 1 . 1 1 1 1 2 . . 6 1 . . . 1 2 . . 18 Kicked 29 | . . . . . . . 1 1 . . 6 . . . . 1 2 . . 18 Crushed 2 | . . . . . 1 . . . . . . 1 . . . . . . . . Highest Temperature 801 | . 20 7 177 78 252 256 507 553 322 233 565 801 298 212 498 301 548 3 78 469 Average Temperature 123 | . 6 7 40 38 76 96 185 154 81 83 152 202 64 91 193 128 154 3 29 109 Received Heat Transfer 3418 | . 300 90 378 36 411 205 47 641 30 12 192 267 527 . 84 54 63 9 . 72 Effects 60 | . . . . . 2 . 6 10 1 . 9 15 . . 2 . 14 . . 1 Shutdowns 11 | . . . . . . . 2 2 1 . 2 3 . . . . 1 . . . Energy Bleed 11 | . . . . . . . . 2 . . 3 2 . . 1 . 3 . . . Interference 13 | . . . . . 2 . 1 2 . . 2 2 . . . . 4 . . . Matter Decay 2 | . . . . . . . 1 . . . . . . . . . . . . 1 Short Circuit 2 | . . . . . . . 1 . . . . 1 . . . . . . . . Damage (minor) 6 | . . . . . . . . 1 . . . 2 . . 1 . 2 . . . Damage (major) 10 | . . . . . . . . 3 . . . 3 . . . . 4 . . . Damage (core) 5 | . . . . . . . 1 . . . 2 2 . . . . . . . . Siege Activations . | . . . . . . . . . . . . . . . . . . . . . Robots Corrupted 4 | . . . . . 1 . . . . . . . . . . 2 . . . 1 Combat Hostiles 1 | . . . . . . . . . . . . . . . . 1 . . . . Parts Fried 7 | . . . . . 2 . . . . . 1 . . . . 4 . . . . Impact Corruptions 26 | . . . . . 3 . . . . . . 1 . . . 3 . . . 19 Robots Melted 1 | . . . . . . . . . . . 1 . . . . . . . . . Combat Hostiles 1 | . . . . . . . . . . . 1 . . . . . . . . . Parts Melted 11 | . . . . . . 1 . 6 1 . 2 . . . . 1 . . . . Heat Transferred 9321 | . . . . . . . 1366 2145 444 740 1397 666 . . 222 1342 777 . 37 185 Parts Sabotaged 2 | . . . . . . . . . . . 2 . . . . . . . . . Parts Stolen . | . . . . . . . . . . . . . . . . . . . . . Parts Stripped . | . . . . . . . . . . . . . . . . . . . . . Power Chain Reactions . | . . . . . . . . . . . . . . . . . . . . . Alert | -11 -10 -9 -8 -7 -7 -7 -5 -5 -5 -5 -5 -4 -4 -4 -3 -3 -2 -2 -1 -1 ------- Run | Yrd Mat Mat Mat Fac Sto Rec Fac Ext Cet Arc Hub Fac Upp Upp Res Tes Res Qua Acc Com Peak Influence 1442 | 15 193 402 444 316 504 208 548 1111 1029 583 1442 706 . . 90 283 431 283 249 773 Initial 706 | . 9 81 61 156 52 196 . 254 621 331 133 706 . . . 15 159 242 93 159 Average 268 | 3 105 224 266 218 201 23 357 467 817 522 828 507 . . 3 122 236 222 148 524 Maximum Alert Level 4 | . . 2 2 1 2 1 2 4 3 2 4 3 . . . 1 2 1 1 3 Low Security (%) 49 | 100 100 36 31 35 61 99 7 1 . . 13 . . . 100 89 36 30 82 5 Level 1 25 | . . 62 59 64 17 . 53 62 . 23 16 . . . . 10 60 69 17 22 Level 2 17 | . . . 9 . 20 . 38 22 26 76 16 95 . . . . 2 . . 48 Level 3 5 | . . . . . . . . 11 73 . 17 4 . . . . . . . 23 Level 4 1 | . . . . . . . . 2 . . 36 . . . . . . . . . Level 5 . | . . . . . . . . . . . . . . . . . . . . . High Security . | . . . . . . . . . . . . . . . . . . . . . Max Security . | . . . . . . . . . . . . . . . . . . . . . Squads Dispatched 51 | . 2 1 3 2 7 . 7 3 1 . 8 2 . . 3 4 4 1 . 3 Investigation 13 | . . . 2 . . . 2 . 1 . 3 . . . 2 . 2 1 . . Extermination 10 | . . . . 1 2 . . . . . 1 1 . . . 2 1 . . 2 Reinforcement 17 | . 2 1 1 1 2 . 1 2 . . 3 . . . 1 2 1 . . . Assault 5 | . . . . . . . 1 1 . . 1 1 . . . . . . . 1 Garrison 6 | . . . . . 3 . 3 . . . . . . . . . . . . . Intercept . | . . . . . . . . . . . . . . . . . . . . . Searches Triggered . | . . . . . . . . . . . . . . . . . . . . . Construction Impeded 2 | . . . . . . . . 1 . . 1 . . . . . . . . . Haulers Reinforced 2 | . . . . . 1 . 1 . . . . . . . . . . . . . Active Scanning Responses . | . . . . . . . . . . . . . . . . . . . . . Cargo Convoy Interrupts . | . . . . . . . . . . . . . . . . . . . . . Stealth | -11 -10 -9 -8 -7 -7 -7 -5 -5 -5 -5 -5 -4 -4 -4 -3 -3 -2 -2 -1 -1 --------- Run | Yrd Mat Mat Mat Fac Sto Rec Fac Ext Cet Arc Hub Fac Upp Upp Res Tes Res Qua Acc Com Distress Signals 29 | . 1 1 5 . 1 . . 4 2 . 2 2 . . 10 . . . 1 . Communications Jammed 1 | . . . . . . . . . . . . . . . . . . . . 1 Distress Signals 1 | . . . . . . . . . . . . . . . . . . . . 1 Times Spotted 439 | . 18 17 36 6 30 5 20 44 12 12 47 33 19 . 22 21 21 8 8 60 Peak Tracking Total 16 | . 5 10 7 3 10 2 7 6 5 2 12 10 9 . 8 5 6 8 6 16 Tactical Retreats 40 | . 1 2 3 . 4 . . 1 . . 3 8 1 . 2 . 4 . . 11 Traps | -11 -10 -9 -8 -7 -7 -7 -5 -5 -5 -5 -5 -4 -4 -4 -3 -3 -2 -2 -1 -1 ------- Run | Yrd Mat Mat Mat Fac Sto Rec Fac Ext Cet Arc Hub Fac Upp Upp Res Tes Res Qua Acc Com Traps Triggered 23 | . . 1 1 3 1 . 1 2 . . 1 1 . . 1 4 5 1 . 1 Indirectly . | . . . . . . . . . . . . . . . . . . . . . Trap Hack Attempts . | . . . . . . . . . . . . . . . . . . . . . Triggered . | . . . . . . . . . . . . . . . . . . . . . Disarmed . | . . . . . . . . . . . . . . . . . . . . . Reprogrammed . | . . . . . . . . . . . . . . . . . . . . . Reused . | . . . . . . . . . . . . . . . . . . . . . Traps Extracted . | . . . . . . . . . . . . . . . . . . . . . Installed . | . . . . . . . . . . . . . . . . . . . . . Triggered 4 | . . . . . . . . . . . . . 1 3 . . . . . . Machines | -11 -10 -9 -8 -7 -7 -7 -5 -5 -5 -5 -5 -4 -4 -4 -3 -3 -2 -2 -1 -1 ---------- Run | Yrd Mat Mat Mat Fac Sto Rec Fac Ext Cet Arc Hub Fac Upp Upp Res Tes Res Qua Acc Com Machines Disabled 41 | . . . 2 . 3 1 6 7 2 1 7 . 1 . . 5 3 2 . 1 Max in Single Turn 1 | . . . 1 . 1 1 1 1 . 1 . . 1 . . 1 1 1 . 1 Garrison Access 1 | . . . . . . . . . . . . 1 . . . . . . . . Network Hub 3 | . . . . . . . . . . . 3 . . . . . . . . . Machines Repaired . | . . . . . . . . . . . . . . . . . . . . . Machines Dismantled . | . . . . . . . . . . . . . . . . . . . . . Machines Sabotaged 1 | . . . . . . . . . . . 1 . . . . . . . . . Overloaded Fab Kills . | . . . . . . . . . . . . . . . . . . . . . Hacking | -11 -10 -9 -8 -7 -7 -7 -5 -5 -5 -5 -5 -4 -4 -4 -3 -3 -2 -2 -1 -1 --------- Run | Yrd Mat Mat Mat Fac Sto Rec Fac Ext Cet Arc Hub Fac Upp Upp Res Tes Res Qua Acc Com Machines Accessed 64 | . 4 5 4 2 5 7 5 6 3 1 3 3 . . 3 5 1 1 4 2 Terminals 54 | . 3 5 4 1 5 6 4 6 3 . 3 2 . . 1 4 1 1 3 2 Fabricators 1 | . . . . 1 . . . . . . . . . . . . . . . . Repair Stations . | . . . . . . . . . . . . . . . . . . . . . Recycling Units 1 | . 1 . . . . . . . . . . . . . . . . . . . Scanalyzers . | . . . . . . . . . . . . . . . . . . . . . Garrison Access 6 | . . . . . . . 1 . . . . 1 . . 2 1 . . 1 . Total Hacks 215 | . 9 18 14 3 12 20 13 12 7 25 5 17 . . 12 17 13 5 8 5 Successful 101 | . 5 7 5 1 7 13 4 9 2 25 2 6 . . 2 1 3 4 3 2 Failed 113 | . 4 10 9 2 5 7 9 3 5 . 3 11 . . 10 16 10 1 5 3 Catastrophic 37 | . 1 . 4 1 . 3 2 1 1 . . 5 . . 4 9 2 1 2 1 Database Lockouts 1 | . . 1 . . . . . . . . . . . . . . . . . . Manual 109 | . 9 18 10 3 8 12 4 8 1 . 5 13 . . 5 7 1 3 1 1 Terminals 169 | . 8 18 14 2 12 17 11 12 7 . 5 16 . . 6 12 13 5 6 5 Fabricators 1 | . . . . 1 . . . . . . . . . . . . . . . . Repair Stations . | . . . . . . . . . . . . . . . . . . . . . Recycling Units 1 | . 1 . . . . . . . . . . . . . . . . . . . Scanalyzers . | . . . . . . . . . . . . . . . . . . . . . Garrison Access 16 | . . . . . . . 2 . . . . 1 . . 6 5 . . 2 . Terminal Hacks 70 | . 2 3 2 . 3 7 2 6 2 25 . 4 . . 1 1 3 4 3 2 Record 33 | . . . . . . 1 1 . 2 25 . . . . . . . 2 1 1 Robot Analysis 3 | . 1 2 . . . . . . . . . . . . . . . . . . Prototype ID Bank 1 | . . . . . . . . . . . . . . . . . 1 . . . Open Door 6 | . . . . . 2 . . 2 . . . . . . . . . . 2 . Level Access Points 2 | . . . . . . . . . . . . . . . . 1 . 1 . . Branch Access Points 6 | . . 1 2 . 1 . 1 . . . . 1 . . . . . . . . Emergency Access Points 2 | . . . . . . . . . . . . . . . . . 1 . . 1 Terminal Index 1 | . . . . . . . . . . . . 1 . . . . . . . . Alert Level 2 | . . . . . . 1 . . . . . . . . 1 . . . . . Unreport Threat 6 | . . . . . . 3 . . . . . 2 . . . . . 1 . . Locate Traps 1 | . . . . . . . . 1 . . . . . . . . . . . . Recall Reinforcements 1 | . . . . . . . . 1 . . . . . . . . . . . . Zone Layout 4 | . 1 . . . . . . 2 . . . . . . . . 1 . . . Release Object 2 | . . . . . . 2 . . . . . . . . . . . . . . Fabricator Hacks . | . . . . . . . . . . . . . . . . . . . . . Repair Station Hacks . | . . . . . . . . . . . . . . . . . . . . . Recycling Unit Hacks . | . . . . . . . . . . . . . . . . . . . . . Scanalyzer . | . . . . . . . . . . . . . . . . . . . . . Garrison Access Hacks 1 | . . . . . . . . . . . . 1 . . . . . . . . Seal Access 1 | . . . . . . . . . . . . 1 . . . . . . . . Unauthorized Hacks 30 | . 3 4 3 1 4 6 2 3 . . 2 1 . . 1 . . . . . Terminals 28 | . 2 4 3 . 4 6 2 3 . . 2 1 . . 1 . . . . . Assimilate 3 | . . . 1 . 2 . . . . . . . . . . . . . . . Botnet 23 | . 2 4 2 . 2 6 2 3 . . . 1 . . 1 . . . . . Sabotage 2 | . . . . . . . . . . . 2 . . . . . . . . . Fabricators 1 | . . . . 1 . . . . . . . . . . . . . . . . Haulers 1 | . . . . 1 . . . . . . . . . . . . . . . . Repair Stations . | . . . . . . . . . . . . . . . . . . . . . Recycling Units 1 | . 1 . . . . . . . . . . . . . . . . . . . Reject 1 | . 1 . . . . . . . . . . . . . . . . . . . Scanalyzers . | . . . . . . . . . . . . . . . . . . . . . Garrison Access . | . . . . . . . . . . . . . . . . . . . . . Data Cores Recovered 1 | . . . . . . . . . . . . . . . . . . . . 1 Used . | . . . . . . . . . . . . . . . . . . . . . Hacking Detections 46 | . 3 4 4 1 4 6 5 2 3 . 1 2 . . 3 4 . 1 2 1 Full Trace Events 4 | . . . 1 . . . 1 . 1 . 1 . . . . . . . . . Feedback Events 1 | . . . 1 . . . . . . . . . . . . . . . . . Corruption 1 | . . . 1 . . . . . . . . . . . . . . . . . Feedback Blocked . | . . . . . . . . . . . . . . . . . . . . . Robot Schematics Acquired . | . . . . . . . . . . . . . . . . . . . . . Robots Built . | . . . . . . . . . . . . . . . . . . . . . Authchips . | . . . . . . . . . . . . . . . . . . . . . Time . | . . . . . . . . . . . . . . . . . . . . . Total Robot Build Rating . | . . . . . . . . . . . . . . . . . . . . . Part Schematics Acquired . | . . . . . . . . . . . . . . . . . . . . . Parts Built . | . . . . . . . . . . . . . . . . . . . . . Authchips . | . . . . . . . . . . . . . . . . . . . . . Time . | . . . . . . . . . . . . . . . . . . . . . Total Part Build Rating . | . . . . . . . . . . . . . . . . . . . . . Parts Repaired . | . . . . . . . . . . . . . . . . . . . . . Time . | . . . . . . . . . . . . . . . . . . . . . Parts Recycled . | . . . . . . . . . . . . . . . . . . . . . Recycled Matter . | . . . . . . . . . . . . . . . . . . . . . Retrieved Matter . | . . . . . . . . . . . . . . . . . . . . . Retrieved Components . | . . . . . . . . . . . . . . . . . . . . . Parts Scanalyzed . | . . . . . . . . . . . . . . . . . . . . . Part Schematics Acquired . | . . . . . . . . . . . . . . . . . . . . . Parts Damaged . | . . . . . . . . . . . . . . . . . . . . . Bothacking | -11 -10 -9 -8 -7 -7 -7 -5 -5 -5 -5 -5 -4 -4 -4 -3 -3 -2 -2 -1 -1 ------------ Run | Yrd Mat Mat Mat Fac Sto Rec Fac Ext Cet Arc Hub Fac Upp Upp Res Tes Res Qua Acc Com Used RIF Installer . | . . . . . . . . . . . . . . . . . . . . . Robots Hacked . | . . . . . . . . . . . . . . . . . . . . . Non-combat . | . . . . . . . . . . . . . . . . . . . . . Combat . | . . . . . . . . . . . . . . . . . . . . . Robot Hacks Applied . | . . . . . . . . . . . . . . . . . . . . . Relay Couplers Released 4 | . . . . . 4 . . . . . . . . . . . . . . . Programmers 4 | . . . . . 4 . . . . . . . . . . . . . . . Fabnet Peak Effective % . | . . . . . . . . . . . . . . . . . . . . . Robots Rewired 29 | . . . . . . 8 . 18 . . . . 2 . . 1 . . . . Allies Hacked 2 | . . . . . . . 2 . . . . . . . . . . . . . Hacks Repelled . | . . . . . . . . . . . . . . . . . . . . . Allies | -11 -10 -9 -8 -7 -7 -7 -5 -5 -5 -5 -5 -4 -4 -4 -3 -3 -2 -2 -1 -1 -------- Run | Yrd Mat Mat Mat Fac Sto Rec Fac Ext Cet Arc Hub Fac Upp Upp Res Tes Res Qua Acc Com Total Allies 37 | . . . . . . 8 . 21 5 . . . 2 . . 1 . . . . Largest Group 14 | . . . . . . 8 8 14 7 6 6 . 2 2 2 1 1 . . . Highest-Rated Group 666 | . . . . . . 153 153 522 666 507 507 . 77 77 77 56 56 . . . Highest-Rated Ally 159 | . . . . . . 40 40 159 152 96 96 . 47 47 47 56 56 . . . Total Orders 19 | . . . . . 2 1 2 . 2 2 6 . . . . . 4 . . . STAY 3 | . . . . . . . . . 1 1 1 . . . . . . . . . FOLLOW 3 | . . . . . . . . . 1 1 1 . . . . . . . . . EXPLORE 10 | . . . . . 2 1 2 . . . 3 . . . . . 2 . . . RETURN 3 | . . . . . . . . . . . 1 . . . . . 2 . . . Ally Attacks 364 | . . . . . . . 36 178 59 21 62 . . . 2 . 6 . . . Total Damage 10711 | . . . . . . . 1387 3810 1822 997 2462 . . . 79 . 154 . . . Kills 75 | . . . . . . . 12 30 9 4 20 . . . . . . . . . Allies Corrupted . | . . . . . . . . . . . . . . . . . . . . . Allies Melted . | . . . . . . . . . . . . . . . . . . . . . Intel | -11 -10 -9 -8 -7 -7 -7 -5 -5 -5 -5 -5 -4 -4 -4 -3 -3 -2 -2 -1 -1 ------- Run | Yrd Mat Mat Mat Fac Sto Rec Fac Ext Cet Arc Hub Fac Upp Upp Res Tes Res Qua Acc Com Robot Analysis Total 3 | . 1 2 . . . . . . . . . . . . . . . . . . Derelict Logs Recovered 1 | . . . . . . . . . . . . . 1 . . . . . . . Drone Launches 16 | . . . . . 4 2 2 . . . 4 . . . . . 4 . . . Drone Recoveries 8 | . . . . . 2 . . . . . 2 . . . . . 4 . . . Exploration | -11 -10 -9 -8 -7 -7 -7 -5 -5 -5 -5 -5 -4 -4 -4 -3 -3 -2 -2 -1 -1 ------------- Run | Yrd Mat Mat Mat Fac Sto Rec Fac Ext Cet Arc Hub Fac Upp Upp Res Tes Res Qua Acc Com Turns Passed 18950 | 133 785 860 982 522 679 2090 791 1554 428 502 766 866 2116 549 2463 751 950 88 184 891 Spaces Moved 11628 | 60 333 418 340 283 283 1020 510 969 261 249 522 500 818 250 1769 682 1086 160 345 770 Core 3 | 3 . . . . . . . . . . . . . . . . . . . . Treads 4374 | 57 333 418 340 283 283 959 343 480 70 . 106 371 45 . 286 . . . . . Legs 5498 | . . . . . . 61 146 330 124 . 135 129 773 250 738 451 1086 160 345 770 Wheels . | . . . . . . . . . . . . . . . . . . . . . Hover 482 | . . . . . . . . . . . 162 . . . 320 . . . . . Flight 1271 | . . . . . . . 21 159 67 249 119 . . . 425 231 . . . . Fastest Speed 44 | 50 160 160 160 162 162 120 56 56 117 117 67 77 130 219 50 44 44 44 44 44 Average Speed 122 | 154 188 160 180 162 162 164 130 104 122 117 96 116 189 219 134 77 44 44 44 68 Slowest Speed 270 | 160 240 160 240 162 243 270 194 162 172 117 117 130 219 219 250 119 44 44 44 104 Overloaded Moves . | . . . . . . . . . . . . . . . . . . . . . Propulsion Burnouts . | . . . . . . . . . . . . . . . . . . . . . Robots Hopped 3 | . . . . . . . 1 . . . . . . . . 2 . . . . Cave-ins Triggered . | . . . . . . . . . . . . . . . . . . . . . Exploration Rate (%) 46 | 4 60 39 31 9 54 99 17 83 70 95 44 12 81 32 54 77 32 37 12 35 Regions Visited 20 Branch Regions 11 Pre-discovered Areas 1 | . . . . . . . . . . . . . 1 . . . . . . . Known Exits Taken 16 | . . . . 1 1 1 1 1 1 1 1 1 1 1 1 1 1 1 1 . Unknown Exits Taken 4 | 1 1 1 1 . . . . . . . . . . . . . . . . . Scrap Searched 2 | . . . . . . . . . . . . . 1 1 . . . . . . Spaces Dug 31 | . . . . 5 1 . . . . . . 11 . . . 2 5 1 6 . Terrain Destroyed 179 | . . . . 10 1 . . 15 1 . 20 23 44 . 3 10 17 2 9 24 Melee 8 | . . . . 5 1 . . . . . . . . . . 2 . . . . Projectile 103 | . . . . . . . . 14 1 . 20 23 1 . 3 8 16 2 9 6 AOE 66 | . . . . 5 . . . . . . . . 43 . . . . . . 18 Terrain Rammed . | . . . . . . . . . . . . . . . . . . . . . Walls Destroyed . | . . . . . . . . . . . . . . . . . . . . . Machines Disabled . | . . . . . . . . . . . . . . . . . . . . . Actions | -11 -10 -9 -8 -7 -7 -7 -5 -5 -5 -5 -5 -4 -4 -4 -3 -3 -2 -2 -1 -1 --------- Run | Yrd Mat Mat Mat Fac Sto Rec Fac Ext Cet Arc Hub Fac Upp Upp Res Tes Res Qua Acc Com Total 14872 | 79 414 516 520 319 393 1409 574 1323 317 423 678 706 1294 252 1828 835 1477 170 363 982 Wait 1854 | . 23 34 62 . 21 193 29 172 29 158 70 148 404 . 21 90 322 2 2 74 Move 11602 | 59 332 417 339 282 282 1019 507 968 260 248 521 499 817 249 1768 678 1085 159 344 769 Hop 2 | . . . . . . . 1 . . . . . . . . 1 . . . . Pick Up 77 | 3 4 7 12 5 5 7 . 3 4 . 2 2 . . 11 3 6 1 1 1 Fast Attach 51 | 7 2 1 4 1 7 1 1 6 1 . 2 1 . . 3 4 5 2 . 3 Attach 53 | . . 2 5 3 3 2 3 2 . . 3 3 8 1 2 4 2 . 3 7 Detach 40 | . 2 1 1 . . 8 2 3 1 . 1 1 3 1 5 5 1 1 . 4 Swap 101 | . 6 9 5 9 14 4 4 3 . 1 12 11 2 1 3 1 11 . 3 2 Drop 73 | . 5 4 6 4 11 21 1 1 . 1 1 3 1 . 4 2 5 . . 3 Fire 682 | 10 40 40 86 8 42 19 25 78 22 15 42 37 48 . 11 36 38 5 10 70 Melee 58 | . . . . 6 7 . . 7 . . . . . . . 8 . . . 30 Ram 1 | . . . . . . . . . . . . . . . . . . . . 1 Kick 29 | . . . . . . . 1 1 . . 6 . . . . 1 2 . . 18 Crush 6 | . . 1 . 1 1 1 . 1 . . . 1 . . . . . . . . Escape Stasis 24 | . . . . . . . . 6 . . 18 . . . . . . . . . Rewire 219 | . . . . . . 134 . 72 . . . . 11 . . 2 . . . . Trap . | . . . . . . . . . . . . . . . . . . . . . Miscellaneous . | . . . . . . . . . . . . . . . . . . . . . Route ------- -11/Scrapyard -10/Materials (discovered 3 exits: *Mat x2 / [*Min]) -9/Materials (discovered 2 exits: *Mat / Min) -8/Materials -7/Factory -7/Storage -7/Recycling -5/Factory (discovered 4 exits: Upp x2 / *Ext x2) -5/Extension (discovered 2 exits: *Fac / *Cet) -5/Cetus (discovered 2 exits: *Fac / *Arc) -5/Archives (discovered 3 exits: *Fac / *Hub x2) -5/Hub_04(d) -4/Factory (discovered 3 exits: *Upp x2 / Arm) -4/Upper Caves -4/Upper Caves -3/Research -3/Testing -2/Research -2/Quarantine -1/Access -1/Command To Epsilon Eridani History --------- Turn | Location | Event 44 | -11/Scrapyard | Discovered new exit (range 15) 134 | -11/Scrapyard | Entered Materials 307 | -10/Materials | Build established: Mutant 378 | -10/Materials | Discovered new exit (range 15) 623 | -10/Materials | Discovered new exit (range 10) 900 | -10/Materials | Discovered new exit (range 4) 919 | -10/Materials | Entered another Materials area 919 | -9/Materials | Evolved 2 slots: Propulsion x1, Weapon x1 1218 | -9/Materials | Build established: Gunner 1359 | -9/Materials | Identified exit to Mines 1445 | -9/Materials | Central database locked down 1581 | -9/Materials | Build established: Scavenger-Gunner 1629 | -9/Materials | Discovered new exit (range 11) 1779 | -9/Materials | Entered another Materials area 1779 | -8/Materials | Evolved 2 slots: Propulsion x1, Utility x1 2175 | -8/Materials | Lost 3 parts (1p2n) 2339 | -8/Materials | Discovered new exit (range 14) 2364 | -8/Materials | Build established: Scavenger-Tank 2761 | -8/Materials | Entered Factory 2761 | -7/Factory | Evolved 2 slots: Utility x2 3238 | -7/Factory | Build established: Scavenger-Skirmisher 3270 | -7/Factory | Discovered new exit (range 8) 3281 | -7/Factory | Identified exit to Storage 3283 | -7/Factory | Entered Storage 3630 | -7/Storage | Identified exit to Recycling 3639 | -7/Storage | Garrison activated, responded to threat 3779 | -7/Storage | Destroyed 15 combat bots 3815 | -7/Storage | Garrison activated, responded to threat 3955 | -7/Storage | Used back door to open Recycling access 3962 | -7/Storage | Entered Recycling 4080 | -7/Recycling | Discovered new exit (range 36) 4829 | -7/Recycling | Build established: Scavenger-Tank 5027 | -7/Recycling | Scanned before Scraplab entrance 5054 | -7/Recycling | Entered Scraplab 5059 | -7/Recycling | Angered Scraplab inhabitants 5063 | -7/Recycling | Found Prototype Device 5100 | -7/Recycling | Identified Scrap Engine 5966 | -7/Recycling | Build established: Commander-Construct 6040 | -7/Recycling | Identified exit to Factory 6052 | -7/Recycling | Entered Factory 6052 | -5/Factory | Accompanied by 8 allies 6052 | -5/Factory | Evolved 4 slots: Propulsion x1, Utility x2, Weapon x1 6436 | -5/Factory | Garrison activated, responded to threat 6507 | -5/Factory | Identified exit to Upper Caves 6507 | -5/Factory | Identified exit to Extension 6652 | -5/Factory | First assault squad dispatched 6843 | -5/Factory | Entered Extension 6843 | -5/Extension | Accompanied by 1 ally 6890 | -5/Extension | Build established: Construct 6967 | -5/Extension | Lost 4 parts (2n2u) 7384 | -5/Extension | Build established: Scavenger-Construct 7408 | -5/Extension | Rescued A7 7431 | -5/Extension | Rescued a captive Derelict 7432 | -5/Extension | Rescued a captive Derelict 7699 | -5/Extension | Lost 4 allies 7741 | -5/Extension | Spotted B-75 Beast 7757 | -5/Extension | Destroyed B-75 Beast 7762 | -5/Extension | Spotted B-75 Beast 7772 | -5/Extension | Allies destroyed B-75 Beast 7781 | -5/Extension | Lost 3 parts (1u2w) 7802 | -5/Extension | Build established: Commander-Construct 8261 | -5/Extension | Lost 3 allies 8328 | -5/Extension | Discovered new exit (range 10) 8329 | -5/Extension | Discovered new exit (range 6) 8343 | -5/Extension | First assault squad dispatched 8363 | -5/Extension | Identified exit to Cetus 8383 | -5/Extension | Lost 4 allies 8397 | -5/Extension | Entered Cetus 8397 | -5/Cetus | Accompanied by 4 allies (A7) 8402 | -5/Cetus | Acquired a Cetus Manufacturing Module code from A7 8414 | -5/Cetus | Spotted Cetus Guard 8414 | -5/Cetus | Spotted Cetus Guard 8416 | -5/Cetus | Spotted Cetus Guard 8416 | -5/Cetus | Spotted Cetus Guard 8427 | -5/Cetus | Destroyed Cetus Guard 8429 | -5/Cetus | Allies destroyed Cetus Guard 8431 | -5/Cetus | Allies destroyed Cetus Guard 8451 | -5/Cetus | Destroyed Cetus Guard 8512 | -5/Cetus | Started Cetus Manufacturing Module 8537 | -5/Cetus | Manufactured an Enhanced Grunt 8562 | -5/Cetus | Manufactured an Enhanced Grunt 8587 | -5/Cetus | Manufactured an Enhanced Grunt 8612 | -5/Cetus | Manufactured an Enhanced Grunt 8637 | -5/Cetus | Manufactured an Enhanced Grunt 8662 | -5/Cetus | Discovered new exit (range 15) 8686 | -5/Cetus | Spotted Cetus Guard 8686 | -5/Cetus | Spotted Cetus Guard 8690 | -5/Cetus | Spotted Cetus Guard 8697 | -5/Cetus | Allies destroyed Cetus Guard 8699 | -5/Cetus | Allies destroyed Cetus Guard 8699 | -5/Cetus | Spotted Cetus Guard 8701 | -5/Cetus | Allies destroyed Cetus Guard 8709 | -5/Cetus | Destroyed Cetus Guard 8718 | -5/Cetus | Discovered new exit (range 16) 8726 | -5/Cetus | Met Revision 17 8823 | -5/Cetus | Identified exit to Archives 8825 | -5/Cetus | Entered Archives 8825 | -5/Archives | Accompanied by 7 allies (A7) 8875 | -5/Archives | Discovered new exit (range 15) 8889 | -5/Archives | Discovered new exit (range 15) 8901 | -5/Archives | Discovered new exit (range 15) 8910 | -5/Archives | Unable to access archive contents 8925 | -5/Archives | Unable to access archive contents 8939 | -5/Archives | Unable to access archive contents 8964 | -5/Archives | Unable to access archive contents 9120 | -5/Archives | Identified exit to Factory 9169 | -5/Archives | Identified exit to Hub_04(d) 9327 | -5/Archives | Entered Hub_04(d) 9327 | -5/Hub_04(d) | Accompanied by 6 allies 9695 | -5/Hub_04(d) | Core integrity fell below 50% 9781 | -5/Hub_04(d) | Lost 3 allies 9795 | -5/Hub_04(d) | Network Hub disabled 9795 | -5/Hub_04(d) | Network Hub disabled 9795 | -5/Hub_04(d) | Network Hub disabled 9927 | -5/Hub_04(d) | First assault squad dispatched 10051 | -5/Hub_04(d) | Spotted Lightning 10051 | -5/Hub_04(d) | Spotted Lightning 10051 | -5/Hub_04(d) | Spotted Lightning 10063 | -5/Hub_04(d) | Core integrity fell below 20% 10086 | -5/Hub_04(d) | Discovered exit to Factory (range 8) 10093 | -5/Hub_04(d) | Entered Factory 10093 | -4/Factory | Evolved 2 slots: Power x1, Propulsion x1 10152 | -4/Factory | Identified exit to Upper Caves 10152 | -4/Factory | Identified exit to Armory 10277 | -4/Factory | Build established: Construct 10843 | -4/Factory | First assault squad dispatched 10959 | -4/Factory | Entered Upper Caves 11011 | -4/Upper Caves | Lost 9 parts (2p1n2u4w) 12206 | -4/Upper Caves | Core integrity fell below 50% 12480 | -4/Upper Caves | Attracted the attention of an 0b10 outpost 12503 | -4/Upper Caves | Build established: Mutant 12547 | -4/Upper Caves | Destroyed 9 combat bots 12726 | -4/Upper Caves | Discovered new exit (range 7) 13073 | -4/Upper Caves | Identified exit to Upper Caves 13075 | -4/Upper Caves | Entered another Upper Caves area 13075 | -4/Upper Caves | Accompanied by 2 allies 13437 | -4/Upper Caves | Discovered new exit (range 8) 13512 | -4/Upper Caves | Build established: Construct 13620 | -4/Upper Caves | Identified exit to Research 13624 | -4/Upper Caves | Entered Research 13624 | -3/Research | Accompanied by 2 allies 13624 | -3/Research | Evolved 2 slots: Utility x2 13824 | -3/Research | Revision forces began assault on 0b10 13850 | -3/Research | Met up with Revision 17++ 13890 | -3/Research | Spotted B-86 Titan 14324 | -3/Research | Research terminal network offline 14687 | -3/Research | Discovered new exit (range 10) 14717 | -3/Research | Identified exit to Testing 15913 | -3/Research | Spotted Striker 16007 | -3/Research | Spotted Executioner 16009 | -3/Research | Spotted Striker 16081 | -3/Research | Lost 3 parts (2u1w) 16087 | -3/Research | Entered Testing 16233 | -3/Testing | Lost 3 parts (1p2w) 16491 | -3/Testing | Build established: Mutant 16572 | -3/Testing | Spotted PX-RF4YAM2ZUT 16738 | -3/Testing | Spotted Striker 16759 | -3/Testing | Identified exit to Research 16791 | -3/Testing | Found Prototype Processor 16791 | -3/Testing | Identified Spectral Analyzer 16816 | -3/Testing | Found Prototype Processor 16816 | -3/Testing | Identified Exp. Terrain Scan Processor 16838 | -3/Testing | Entered Research 16838 | -2/Research | Accompanied by 1 ally 16838 | -2/Research | Evolved 2 slots: Power x1, Utility x1 16873 | -2/Research | Spotted B-90 Cyclops 16987 | -2/Research | Build established: Construct 17752 | -2/Research | Discovered new exit (range 24) 17752 | -2/Research | Spotted B-90 Cyclops 17788 | -2/Research | Identified exit to Quarantine 17788 | -2/Research | Entered Quarantine 17826 | -2/Quarantine | Found Alien Artifact 17826 | -2/Quarantine | Identified Terrabomb 17826 | -2/Quarantine | Used Terrabomb 17831 | -2/Quarantine | Found Terrabomb 17849 | -2/Quarantine | Identified exit to Access 17866 | -2/Quarantine | Found Alien Artifact 17866 | -2/Quarantine | Identified Subatomic Replicator 17876 | -2/Quarantine | Entered Access 17876 | -1/Access | Evolved 2 slots: Utility x2 17912 | -1/Access | Spotted B-99 Colossus 18057 | -1/Access | Discovered new exit (range 8) 18059 | -1/Access | Identified exit to Command 18060 | -1/Access | Entered Command 18353 | -1/Command | Destroyed 7 combat bots 18397 | -1/Command | Lost 9 parts (3u6w) 18428 | -1/Command | System corruption reached 10% 18516 | -1/Command | Lost 8 parts (1p1n5u1w) 18713 | -1/Command | Build established: Mutant 18860 | -1/Command | First assault squad dispatched 18921 | -1/Command | System corruption reached 30% 18941 | -1/Command | Used Terrabomb 18941 | -1/Command | Spotted Alpha 7 18941 | -1/Command | Spotted Striker 18941 | -1/Command | Spotted Executioner 18941 | -1/Command | Spotted Executioner 18941 | -1/Command | Spotted Alpha 7 18941 | -1/Command | Spotted Striker 18941 | -1/Command | Spotted Executioner 18941 | -1/Command | Spotted Executioner 18941 | -1/Command | Spotted B-99 Colossus 18942 | -1/Command | Core integrity fell below 50% 18949 | -1/Command | Discovered new exit (range 4) 18949 | -1/Command | Spotted B-99 Colossus 18951 | *** | Escaped! Last Messages --------------- 18941_ Critical hit (Destroy). 18941_ Centrium-Cooled Exoskeleton destroyed. 18941_ Centrium-Cooled Exoskeleton core remains intact and functional. 18942_ System corrupted: Matter fused (-5). 18942_ Acquired 6 matter. 18943_ Penetrated by Slug. 18945_ Knocked back. 18945_ Penetrated by Slug. 18945_ Acquired 7 matter. 18945_ Slug penetrates Access Shell. 18946_ B-99 Colossus activates siege mode. 18946_ Executioner knocked back. 18948_ Penetrated by Slug. 18948_ Slug penetrates Earth. 18949_ EXIT=FOUND 18949_ Slug penetrates Access Shell. 18949_ Penetrated by Slug. 18949_ Slug penetrates Access Shell. 18951_ Penetrated by Slug. 18951_ Slug penetrates Access Shell. Map ----- +----------------------------------------------------+ | ??????????????????????# | | ??????????????????????# #######+### ######## | | ??????????????????????# ??????????# #??????? | | ??????????????????????# ???????????# #??????? | | ??????????????????????# ????????? ??# #??????? | | ?????????????????????????????????? ?# #??????? | | ?????????????????????????????????? ?# #??????? | | ???????????????????????????#######"### #??# ##? | | ?????????????????????##++++#""" " ##?# | | ?????????????????????# """ " ;### | | ????????????????????## """ " ; # | | ????????????????????# "" ; ; " "" | | ???????????????????##; """ ; ; " "" | | ??????????????????##; "" ; ;;;" " | | ?????????????????##;;; """ ; + | | ?????????????????# ;; "" ; ;;;" ] | | ????????????????## ;;; ^ """ ; ; ;""#" | | ????????????????#;;;; """; ; ; " " | | ?????????????????;;;;; ^""";; ; hh; " " | | ??????????????????; B;; ; ; " " | | ??????????????????? BB BB;; ; " " " | | ???????????????????? BB ? ;;;;;;;;+"/""""""#" | | ????????????????????? """ E;;; p | | ??????????????????????" E ;;; | | ??????????????????????" "" K """ | | ??????????????????????" "@ " """ | | ?????????????## "????" " """ % | | ?????????????# "" """" " """ | | ??????????????# "" """ | | ??????????????# "" %""""""""""""""""#" | | ??????????????# "" "" " " | | ??????????????# """""""""";;;""" " | | ??????????????# """""""""";;;;"" """ | | ??????????????# | | ??????????????## | | ???????????????# | | ???????????????## | | ????????????????# | | ????????????????## | | ?????????????????# | | ?????????????????## | | ??????????????????## # | | ???????????????????## ## | | ???????????????????? ##? | | ????????????????????#### ###?? | | ???????????????????????### ###???? | | ?????????????????????????### ###?????? | | ???????????????????????????####### #######???????? | | ??????????????????????????????????##?????????????? | | ?????????????????????????????????????????????????? | +----------------------------------------------------+ Best States ------------- Heat Dissipation 90 Energy Generation 101 Energy Capacity 804 Matter Stores 300 Matter Capacity 300 Sight Range 24 Robot Scan Range 16 Terrain Scan Range 24 Terrain Scan Density 210 Jamming Range 16 Armor Coverage 600 Resistance: TH 15 Evasion (%) 66 Targeting Accuracy 8 Target Analysis 8 Core Analysis 6 Recoil Reduction 5 Offensive Hacking 12 Item Schematics ----------------- None Robot Schematics ------------------ None Fabricated ------------ Nothing Alien Tech Used ----------------- Terrabomb Subatomic Replicator Achievements -------------- Generalissimo Gun Specialist Hard Hitter More Power To You Challenges ------------ None Game ------ Seed BombardmentSmallTreads Manual? 0 Play Time 04:17:32 Cumulative 170.6 hours Start 2024.09.27 @ 13:22:28 End 2024.09.27 @ 18:37:39 Sessions 1 Manual Loads 0 Difficulty Rogue Special Mode None Game No. 125 Rogue 125 Adventurer 0 Explorer 0 Win Type 0 Total 8 Types 7/0/1/0/0/0/0/0/0 Lore% 44 Gallery% 58 Achievement% 56 Wizard Run 0 Options --------- Layout 0 ASCII 0 Keyboard 1 Movement Numpad Keybinds 0 Fullscreen 2 Font 18/X11 Map View 76x50 Zoom Use 0% Tactical HUD 1 Map Filters NONE Filters NONE Steam 1 RUN: 0f375901-9501-4dff-b9f6-f7fc0300df3c